bitfinex-derivatives/quotes_ETHF0:USTF0_20250125
["timestamp","ask_amount","ask_price","bid_price","bid_amount"]
[1737833442072,0.4967,3343.1,3342.9,0.47868]
[1737833442477,0.4967,3343.1,3343.0,0.47868]
[1737833442669,0.9215921,3343.1,3342.9,0.95138]
[1737833442870,0.4967,3343.1,3342.9,0.95138]
[1737833443370,0.42491821,3343.0,3342.9,0.4727]
[1737833443575,0.42491821,3343.0,3342.9,0.95139]
[1737833444480,0.42491821,3343.0,3342.9,0.4727]
[1737833444976,0.4967,3343.1,3342.9,0.4727]
[1737833445678,0.97537,3343.1,3342.8,3.2078]
[1737833445878,0.4248752,3343.0,3342.8,3.2078]
[1737833446073,0.4713,3342.9,3342.8,3.2078]
[1737833446280,0.9625,3342.9,3342.8,3.2078]
[1737833446479,1.3873752,3342.9,3342.8,3.2078]
[1737833447376,0.9625,3342.9,3342.8,3.2078]
[1737833447880,0.9625,3342.9,3342.8,3.68651]
[1737833448779,0.9625,3342.9,3342.8,3.2078]
[1737833449273,0.47871,3342.8,3342.4,3.44394921]
[1737833449479,0.90362573,3342.8,3342.4,3.92270921]
[1737833449679,0.98992,3342.7,3342.4,3.44394921]
[1737833450383,0.42495183,3342.6,3342.4,3.44394921]
[1737833451382,0.91687226,3342.6,3342.4,3.44394921]
[1737833451679,0.49192043,3342.6,3342.4,3.44394921]
[1737833452483,0.97066043,3342.6,3342.4,3.44394921]
[1737833452979,0.49192043,3342.6,3342.4,0.23614921]
[1737833453183,0.49192043,3342.6,3342.2,2.3827018]
[1737833453387,0.47876,3342.5,3342.0,1.4107]
[1737833453683,0.5027,3342.4,3342.1,0.4788]
[1737833453885,0.49192043,3342.3,3342.1,0.4788]
[1737833454084,0.99812043,3342.3,3342.1,0.4788]
[1737833454278,0.49192043,3342.2,3342.1,0.4788]
[1737833455585,0.5062,3342.3,3342.1,0.4788]
[1737833456685,0.5062,3342.3,3342.2,0.47879]
[1737833456878,0.99770835,3342.3,3342.2,0.47879]
[1737833457285,0.47871,3342.8,3342.4,0.47876]
[1737833457584,0.4954,3342.7,3342.4,0.47876]
[1737833457785,0.49147265,3342.6,3342.4,0.47876]
[1737833457977,0.49147265,3342.6,3342.4,0.95266]
[1737833458480,0.49147265,3342.6,3342.4,0.4739]
[1737833458983,0.49147265,3342.6,3342.5,0.47875]
[1737833462680,0.24653121,3342.6,3342.5,2.8614518]
[1737833462882,2.979,3342.9,3342.8,0.47871]
[1737833463079,1.0095,3343.0,3342.9,0.47869]
[1737833463080,0.5027,3343.0,3342.9,0.47869]
[1737833463281,0.5027,3343.0,3342.9,0.96569]
[1737833463485,0.5027,3343.0,3342.9,1.44339]
[1737833464086,0.5027,3343.0,3342.9,1.95989]
[1737833464685,0.5027,3343.0,3342.9,0.95639]
[1737833469791,0.4903,3343.3,3342.9,1.55192945]
[1737833469991,0.4903,3343.3,3343.1,1.55288945]
[1737833471600,0.4903,3343.3,3343.1,1.07422945]
[1737833471894,0.4769843,3343.2,3343.0,0.47867]
[1737833472197,0.4769843,3343.2,3343.1,0.47866]
[1737833472685,0.95003491,3343.2,3343.1,0.47866]
[1737833473493,0.95003491,3343.2,3342.9,0.4777]
[1737833473695,0.95003491,3343.2,3343.0,0.47868]
[1737833474492,0.95003491,3343.2,3343.1,0.47866]
[1737833474698,0.95003491,3343.2,3342.9,0.4777]
[1737833474993,0.95003491,3343.2,3343.0,0.47867]
[1737833476191,0.95003491,3343.2,3342.9,0.95638]
[1737833476401,0.47869,3342.9,3342.8,3.2078]
[1737833477299,0.95174061,3342.9,3342.8,3.2078]
[1737833477895,1.37607885,3342.9,3342.8,3.2078]
[1737833484711,0.47871,3342.8,3342.5,0.47875]
[1737833484913,0.5212,3342.7,3342.5,0.47875]
[1737833485114,0.47305061,3342.6,3342.5,0.47875]
[1737833485308,0.95005061,3342.6,3342.3,0.2421516]
[1737833485508,0.95005061,3342.6,3342.4,0.47875]
[1737833492118,0.95005061,3342.6,3342.3,0.47878]
[1737833492320,0.95005061,3342.6,3342.4,0.47875]
[1737833493316,0.47875,3342.5,3342.2,4.703]
[1737833493520,0.95180061,3342.5,3342.2,3.7072]
[1737833493722,0.95180061,3342.5,3342.2,4.78199778]
[1737833494021,0.47305061,3342.5,3342.4,1.55355778]
[1737833494222,0.95005061,3342.6,3342.5,0.47875]
[1737833494724,0.47305061,3342.6,3342.5,0.47875]
[1737833495017,0.47305061,3342.6,3342.4,1.07479778]
[1737833495018,0.47713351,3342.8,3342.7,0.47871]
[1737833495218,0.47713351,3342.8,3342.7,1.55350778]
[1737833496014,0.47713351,3342.8,3342.7,1.07479778]
[1737833496419,0.47873,3342.6,3342.3,2.97999778]
[1737833496621,0.5026,3342.5,3342.3,2.00679778]
[1737833496824,0.47713351,3342.4,3342.3,2.00679778]
[1737833497122,0.97973351,3342.5,3342.3,2.00679778]
[1737833497621,0.97973351,3342.5,3342.3,0.932]
[1737833498725,0.47713351,3342.4,3342.3,0.932]
[1737833498919,0.5026,3342.5,3342.3,0.932]
[1737833499225,0.47713351,3342.4,3342.3,0.932]
[1737833499427,0.5026,3342.5,3342.3,0.932]
[1737833499615,0.47713351,3342.4,3342.3,0.932]
[1737833499820,0.47713351,3342.6,3342.4,0.47876]
[1737833500025,0.47713351,3342.6,3342.4,0.98926]
[1737833500219,0.47713351,3342.6,3342.4,1.47436]
[1737833500819,0.47713351,3342.6,3342.4,0.9956]
[1737833501124,0.95587351,3342.6,3342.3,0.932]
[1737833503825,0.95587351,3342.6,3342.2,3.2078]
[1737833504427,0.95587351,3342.6,3342.2,3.68659]
[1737833505228,0.95587351,3342.6,3342.2,3.2078]
[1737833505429,0.95587351,3342.6,3342.2,3.68659]
[1737833506515,0.95587351,3342.6,3342.2,3.2078]
[1737833507326,0.95587351,3342.6,3342.2,3.68659]
[1737833508927,0.95587351,3342.6,3342.2,0.47879]
[1737833514230,0.47875,3342.5,3342.1,0.9705]
[1737833514728,0.5182,3342.4,3342.1,0.9705]
[1737833514931,0.47713351,3342.3,3342.1,0.9705]
[1737833515125,0.47713351,3342.3,3342.1,0.4917]
[1737833515325,0.47713351,3342.3,3342.2,0.47879]
[1737833517635,0.47713351,3342.3,3342.2,1.55355721]
[1737833518832,1.37370284,3342.6,3342.3,0.47878]
[1737833519129,3.2078,3342.8,3342.3,0.47878]
[1737833519130,0.47713351,3342.5,3342.4,1.55352721]
[1737833519326,0.47713351,3342.7,3342.4,4.28256721]
[1737833519527,0.47713351,3342.7,3342.6,1.55349721]
[1737833521532,0.4992,3343.1,3342.6,1.55349721]
[1737833521533,0.47713351,3342.8,3342.7,0.47872]
[1737833523840,0.97633351,3343.1,3342.5,0.5148]
[1737833524038,0.97633351,3343.1,3342.9,0.47869]
[1737833525440,0.97633351,3343.1,3342.6,2.38089554]
[1737833525735,0.97633351,3343.1,3343.0,0.47868]
[1737833526736,0.97633351,3343.1,3342.9,1.97358]
[1737833526938,0.47713351,3343.0,3342.9,1.97358]
[1737833528133,0.47713351,3343.0,3342.9,4.35447554]
[1737833528330,0.47713351,3343.1,3343.0,0.47868]
[1737833528530,0.0044843,3343.2,3343.0,0.47867]
[1737833529330,0.0044843,3343.2,3343.1,0.47866]
[1737833531841,0.48161781,3343.2,3343.1,0.47866]
[1737833532337,0.0044843,3343.2,3343.1,0.47866]
[1737833532539,0.0044843,3343.2,3343.0,0.47867]
[1737833532740,0.0044843,3343.2,3343.1,0.47866]
[1737833535238,0.47869,3342.9,3342.8,3.2078]
[1737833535438,0.47875,3342.5,3342.3,3.2078]
[1737833535646,4.10876597,3343.1,3342.3,3.2078]
[1737833535647,0.5047,3342.4,3342.3,3.2078]
[1737833536155,0.98183351,3342.4,3342.3,3.2078]
[1737833544644,0.98183351,3342.4,3342.3,3.68658]
[1737833544843,0.98183351,3342.4,3342.3,3.2078]
[1737833545042,0.47713351,3342.4,3342.3,4.20158]
[1737833545244,0.47713351,3342.7,3342.6,0.47873]
[1737833545544,2.90653964,3342.9,3342.8,0.47871]
[1737833547349,0.0044843,3343.2,3342.7,3.2078]
[1737833547552,0.0044843,3343.2,3343.1,1.55343948]
[1737833547742,0.0044843,3343.2,3343.1,0.47866]
[1737833551655,0.0044843,3343.2,3343.1,0.72121382]
[1737833553750,0.0044843,3343.2,3343.1,0.47866]
[1737833563449,0.0044843,3343.2,3342.9,2.18289276]
[1737833563450,0.0044843,3343.2,3342.9,1.0111]
[1737833563655,6.07396188,3343.2,3342.3,3.2078]
[1737833563852,3.68651,3342.8,3342.4,0.47876]
[1737833564150,0.48823172,3342.7,3342.3,3.68656]
[1737833564355,0.97273172,3342.7,3342.3,3.68656]
[1737833564557,0.48823172,3342.6,3342.3,5.58807758]
[1737833564748,0.4787,3342.9,3342.3,6.06684758]
[1737833564953,0.96690514,3343.0,3342.4,0.47875]
[1737833565153,0.4787,3342.9,3342.3,6.06684758]
[1737833565345,0.4758,3342.8,3342.3,6.06684758]
[1737833565744,0.96402514,3342.8,3342.3,6.06684758]
[1737833566860,0.48822514,3342.7,3342.3,5.58807758]
[1737833568249,0.9491,3342.6,3342.3,3.2078]
[1737833568452,0.96697514,3342.5,3342.3,3.2078]
[1737833569658,0.96697514,3342.5,3342.4,1.07465825]
[1737833570061,0.48822514,3342.5,3342.4,1.07465825]
[1737833571760,0.48822514,3342.5,3342.3,3.2078]
[1737833574259,0.96697514,3342.5,3342.3,3.2078]
[1737833576453,0.48822514,3342.5,3342.3,3.2078]
[1737833576653,0.96697514,3342.5,3342.3,3.2078]
[1737833577053,0.48822514,3342.5,3342.3,3.2078]
[1737833577257,0.96697514,3342.5,3342.3,3.2078]
[1737833577460,0.48822514,3342.5,3342.3,3.2078]
[1737833578361,0.96697514,3342.5,3342.3,3.2078]
[1737833579460,0.48822514,3342.5,3342.3,3.2078]
[1737833580752,0.48822514,3342.5,3342.3,3.68657]
[1737833581862,0.48822514,3342.5,3342.3,3.2078]
[1737833582858,0.48822514,3342.5,3342.3,3.68657]
[1737833583563,0.48822514,3342.5,3342.3,3.2078]
[1737833583756,0.48822514,3342.5,3342.4,0.98026]
[1737833584861,0.4752,3342.6,3342.3,3.2078]
[1737833585061,0.4752,3342.6,3342.5,0.47875]
[1737833585661,0.4752,3342.6,3342.5,0.98025]
[1737833586564,0.48822514,3342.7,3342.6,0.47873]
[1737833592062,0.48822514,3342.7,3342.3,3.2078]
[1737833592266,0.5092,3342.6,3342.3,3.2078]
[1737833592463,0.48822514,3342.5,3342.3,3.2078]
[1737833592867,0.47876,3342.4,3342.3,3.2078]
[1737833593368,0.48822514,3342.5,3342.3,3.2078]
[1737833593765,0.95386,3342.4,3342.3,3.2078]
[1737833593965,1.44208514,3342.4,3342.3,3.2078]
[1737833594267,0.96332514,3342.4,3342.3,3.2078]
[1737833594770,1.41317374,3342.4,3342.3,3.2078]
[1737833594970,1.41317374,3342.4,3342.3,3.7024]
[1737833595170,0.96332514,3342.4,3342.3,3.7024]
[1737833595859,1.41317321,3342.4,3342.3,3.7024]
[1737833596063,0.96332514,3342.4,3342.3,3.7024]
[1737833596264,1.41318346,3342.4,3342.3,3.7024]
[1737833597174,1.89194346,3342.4,3342.3,3.7024]
[1737833597774,1.41318346,3342.4,3342.3,3.7024]
[1737833600069,0.96332514,3342.4,3342.3,3.7024]
[1737833600265,0.4751,3342.4,3342.3,3.7024]
[1737833600473,0.48822514,3342.5,3342.3,3.7024]
[1737833600661,2.43143964,3342.7,3342.6,0.47873]
[1737833600863,3.3931323,3342.7,3342.6,1.55351336]
[1737833601061,2.9433341,3342.7,3342.6,1.55351336]
[1737833601464,2.86059815,3342.7,3342.6,1.55351336]
[1737833601770,0.0044843,3343.2,3342.6,1.55351336]
[1737833601971,0.4792,3343.0,3342.9,1.07478336]
[1737833602171,0.92889252,3343.0,3342.9,1.07478336]
[1737833602779,0.92889252,3343.0,3342.7,1.07478336]
[1737833603075,0.92838252,3342.9,3342.7,1.07478336]
[1737833603273,1.40248252,3342.9,3342.7,1.07478336]
[1737833603468,0.93089252,3342.8,3342.7,1.07478336]
[1737833605378,0.4812,3342.8,3342.7,1.07478336]
[1737833605981,0.93083277,3342.8,3342.7,1.07478336]
[1737833607783,1.40953277,3342.8,3342.7,1.07478336]
[1737833608171,0.93083277,3342.8,3342.7,1.07478336]
[1737833609077,0.93083277,3342.8,3342.5,1.07478336]
[1737833609278,0.47873,3342.6,3342.5,1.07478336]
[1737833611288,1.07478336,3342.6,3342.1,1.07478336]
[1737833611495,0.47876,3342.4,3342.1,1.07478336]
[1737833611792,1.39592961,3342.4,3342.1,1.07478336]
[1737833611990,2.38792961,3342.4,3342.1,1.07478336]
[1737833612394,1.90916961,3342.4,3342.1,1.55358336]
[1737833612592,1.90916961,3342.4,3342.3,4.28258336]
[1737833613094,1.45953684,3342.4,3342.3,4.28258336]
[1737833613898,0.97793684,3342.4,3342.3,4.28258336]
[1737833615894,0.46010378,3342.4,3342.3,4.76136336]
[1737833616094,3.7667586,3342.8,3342.6,0.47873]
[1737833616297,3.7667586,3342.8,3342.6,1.55351336]
[1737833616491,3.7667586,3342.8,3342.7,0.4866]
[1737833616794,0.5589586,3342.8,3342.7,0.4866]
[1737833617689,1.00854825,3342.8,3342.6,1.07478336]
[1737833617889,0.44958965,3342.7,3342.6,1.07478336]
[1737833618797,0.44958965,3342.7,3342.6,1.55351336]
[1737833618984,0.5589586,3342.8,3342.6,1.55351336]
[1737833619189,0.5589586,3342.8,3342.6,1.07478336]
[1737833619388,0.47875,3342.5,3342.4,1.07478336]
[1737833619584,0.9283528,3342.7,3342.4,1.07478336]
[1737833619796,0.4863,3342.6,3342.4,1.07478336]
[1737833619997,0.44962951,3342.5,3342.4,1.07478336]
[1737833620291,0.44963715,3342.5,3342.4,1.55354336]
[1737833620703,0.44963715,3342.5,3342.4,2.54834336]
[1737833621393,0.44963715,3342.5,3342.4,1.07478336]
[1737833621887,0.44963715,3342.5,3342.4,1.55354336]
[1737833622398,0.44963715,3342.5,3342.4,1.07478336]
[1737833623797,0.44963715,3342.5,3342.4,1.55354336]
[1737833623997,0.44963715,3342.5,3342.4,1.07478336]
[1737833625801,0.521,3342.6,3342.4,1.07478336]
[1737833626002,0.49166645,3342.5,3342.4,1.55353336]
[1737833629703,0.49166645,3342.7,3342.4,1.55353336]
[1737833630204,0.49166645,3342.7,3342.5,0.47874]
[1737833630503,0.49166645,3342.7,3342.5,0.97544]
[1737833630703,0.49166645,3342.7,3342.6,0.4904]
[1737833632105,0.49166645,3342.7,3342.6,1.56518336]
[1737833639108,0.49166645,3342.7,3342.6,2.04391336]
[1737833639506,0.49166645,3342.7,3342.6,1.56518336]
[1737833641914,0.49166645,3342.7,3342.6,2.04391336]
[1737833642212,0.49166645,3342.7,3342.6,1.56518336]
[1737833643101,0.94147993,3342.7,3342.6,1.56518336]
[1737833645915,0.94147993,3342.7,3342.6,2.04391336]
[1737833646211,0.94147993,3342.7,3342.6,1.56518336]
[1737833647203,0.94147993,3342.7,3342.6,1.07478336]
[1737833647410,1.42019993,3342.7,3342.6,1.07478336]
[1737833651615,0.94147993,3342.7,3342.6,1.07478336]
[1737833652323,0.94147993,3342.7,3342.6,1.55351336]
[1737833652619,0.94147993,3342.7,3342.6,2.02821336]
[1737833653008,0.49166645,3342.7,3342.6,2.02821336]
[1737833653421,0.49166645,3342.7,3342.6,1.54948336]
[1737833655614,0.49166645,3342.7,3342.6,2.02821336]
[1737833655907,0.49166645,3342.7,3342.6,1.54948336]
[1737833657913,0.91726752,3342.7,3342.6,1.54948336]
[1737833659210,0.91726752,3342.7,3342.6,2.02821336]
[1737833659414,0.91726752,3342.7,3342.6,1.54948336]
[1737833661419,1.39598752,3342.7,3342.6,1.54948336]
[1737833662521,1.39598752,3342.7,3342.6,1.07478336]
[1737833662920,0.91726752,3342.7,3342.6,1.07478336]
[1737833663725,1.39598752,3342.7,3342.6,1.07478336]
[1737833665128,1.39598629,3342.7,3342.6,1.07478336]
[1737833666420,0.47873,3342.6,3342.5,3.2078]
[1737833666623,1.91049629,3342.6,3342.5,3.2078]
[1737833667829,1.91049629,3342.6,3342.5,4.28258336]
[1737833668224,1.43176629,3342.6,3342.5,4.28258336]
[1737833668625,1.43176629,3342.6,3342.5,4.76908336]
[1737833669233,1.43176629,3342.6,3342.5,4.28258336]
[1737833669527,1.91049629,3342.6,3342.5,4.28258336]
[1737833671833,1.43176629,3342.6,3342.5,4.28258336]
[1737833672631,1.91049629,3342.6,3342.5,4.28258336]
[1737833673125,1.43176629,3342.6,3342.5,4.28258336]
[1737833673632,1.91049629,3342.6,3342.5,4.28258336]
[1737833674421,1.43176629,3342.6,3342.5,4.28258336]
[1737833675026,1.91049629,3342.6,3342.5,4.28258336]
[1737833676532,1.91049629,3342.6,3342.5,3.2078]
[1737833679228,1.91049629,3342.6,3342.5,4.28258336]
[1737833680437,1.43176629,3342.6,3342.5,4.28258336]
[1737833681331,1.00616645,3342.6,3342.5,4.28258336]
[1737833681732,1.91008093,3342.6,3342.5,4.28258336]
[1737833682445,1.43135093,3342.6,3342.5,4.28258336]
[1737833685539,1.00616645,3342.6,3342.5,4.76133336]
[1737833686031,0.49166645,3342.6,3342.5,4.76133336]
[1737833686237,0.4863,3342.8,3342.5,4.76133336]
[1737833686238,0.4970121,3342.7,3342.6,0.47873]
[1737833686437,0.92223215,3342.7,3342.6,1.55351336]
[1737833686835,0.42522427,3342.7,3342.6,1.55351336]
[1737833688737,0.42522427,3342.7,3342.6,1.07478336]
[1737833689139,0.92223215,3342.7,3342.6,1.07478336]
[1737833689334,0.92223215,3342.7,3342.6,1.55351336]
[1737833689536,0.42522427,3342.7,3342.6,1.55351336]
[1737833691144,0.92223215,3342.7,3342.6,1.55351336]
[1737833691443,0.42522427,3342.7,3342.6,1.55351336]
[1737833693347,0.42522427,3342.8,3342.7,0.47872]
[1737833693542,0.92223215,3342.8,3342.7,0.47872]
[1737833693847,0.92223215,3342.8,3342.6,1.07478336]
[1737833693848,0.92223215,3342.8,3342.6,1.55351336]
[1737833694052,0.42522427,3342.7,3342.6,1.07478336]
[1737833694251,0.92223215,3342.7,3342.6,1.07478336]
[1737833694653,1.40095215,3342.7,3342.6,1.07478336]
[1737833694852,1.90175215,3342.7,3342.6,1.07478336]
[1737833695754,0.47875,3342.5,3342.4,1.07478336]
[1737833696052,1.89317215,3342.6,3342.4,1.07478336]
[1737833696251,0.92223215,3342.5,3342.4,1.07478336]
[1737833696454,1.42283215,3342.5,3342.4,1.07478336]
[1737833698456,1.90158215,3342.5,3342.4,1.07478336]
[1737833700151,0.92223215,3342.5,3342.4,1.07478336]
[1737833700551,0.42522427,3342.5,3342.4,1.07478336]
[1737833701353,0.92432427,3342.5,3342.4,1.07478336]
[1737833701553,1.42133215,3342.5,3342.4,1.07478336]
[1737833703858,1.90008215,3342.5,3342.4,1.07478336]
[1737833704559,0.47879,3342.3,3342.2,1.07478336]
[1737833704750,0.47879,3342.3,3342.1,3.2078]
[1737833704954,1.40102215,3342.3,3342.1,3.2078]
[1737833705251,0.49700788,3342.2,3342.1,3.2078]
[1737833705452,0.47879,3342.3,3342.1,3.2078]
[1737833705661,0.90958802,3342.3,3342.1,3.2078]
[1737833705858,0.49700788,3342.2,3342.1,3.6866]
[1737833706058,0.4991,3342.5,3342.3,0.47878]
[1737833706360,0.93132921,3342.4,3342.3,0.47878]
[1737833706750,0.50055059,3342.4,3342.3,1.55356336]
[1737833706949,3.2078,3342.8,3342.3,1.07478336]
[1737833707156,3.2078,3342.8,3342.7,1.07478336]
[1737833707463,4.1390059,3342.8,3342.7,1.07478336]
[1737833707653,4.1390059,3342.8,3342.7,1.55350336]
[1737833708662,0.9312059,3342.8,3342.7,1.55350336]
[1737833714162,0.50048206,3343.1,3342.7,1.07478336]
[1737833714362,0.93107841,3343.0,3342.9,0.47869]
[1737833714558,0.93107841,3343.0,3342.9,5.83605672]
[1737833715464,0.0044843,3343.2,3342.9,5.35736672]
[1737833715661,0.0044843,3343.2,3343.1,1.55344336]
[1737833719267,0.0044843,3343.2,3343.1,1.07478336]
[1737833720070,0.5047108,3343.2,3343.1,1.07478336]
[1737833720673,0.5047108,3343.2,3343.1,1.55344336]
[1737833725166,0.0044843,3343.2,3343.1,1.55344336]
[1737833725778,0.0044843,3343.2,3343.1,2.06854336]
[1737833727571,0.521,3343.9,3343.1,1.58988336]
[1737833727875,0.521,3343.9,3343.8,1.55334336]
[1737833728075,1.00713178,3343.9,3343.8,1.55334336]
[1737833728572,0.48613178,3343.9,3343.8,1.55334336]
[1737833728876,0.5254843,3344.2,3344.1,0.47852]
[1737833729073,1.01141452,3344.2,3344.1,1.55330336]
[1737833731379,1.01141452,3344.2,3343.9,1.07478336]
[1737833731675,0.48552082,3344.1,3343.9,1.07478336]
[1737833732371,0.48552082,3344.1,3343.9,1.55332336]
[1737833732974,0.48552082,3344.1,3343.9,1.07478336]
[1737833733876,0.48552082,3344.1,3343.8,0.47856]
[1737833734679,0.48552082,3344.1,3343.6,3.2078]
[1737833734876,0.48552082,3344.1,3343.9,0.47854]
[1737833737171,0.48552082,3344.1,3343.8,0.47855]
[1737833738377,0.42901641,3344.0,3343.6,3.2078]
[1737833738786,0.47855,3343.9,3343.6,3.2078]
[1737833738978,0.9946,3343.8,3343.6,3.2078]
[1737833739180,0.48552082,3343.7,3343.6,3.2078]
[1737833739474,0.48552082,3343.7,3343.6,3.68639]
[1737833740085,0.48552082,3343.7,3343.6,3.2078]
[1737833740981,0.48552082,3343.7,3343.6,3.68639]
[1737833742992,0.48552082,3343.7,3343.6,4.19499]
[1737833743393,0.4801,3344.0,3343.9,0.47855]
[1737833743798,1.39636832,3344.0,3343.9,0.47855]
[1737833744100,0.9667276,3344.0,3343.9,0.47855]
[1737833744293,0.9667276,3344.0,3343.6,3.7164]
[1737833744488,0.4866276,3343.9,3343.8,0.47855]
[1737833745990,1.39487588,3343.9,3343.6,3.2078]
[1737833746192,1.39487588,3343.9,3343.5,0.0044843]
[1737833746193,0.47859,3343.6,3343.5,0.0044843]
[1737833746698,1.39496146,3343.6,3343.5,0.0044843]
[1737833747000,2.40226146,3343.6,3343.5,0.0044843]
[1737833748201,2.40226146,3343.6,3343.5,0.00175381]
[1737833749313,0.47867,3343.1,3342.8,3.6865]
[1737833749502,0.9698,3343.0,3342.8,3.6865]
[1737833749806,0.4866276,3342.9,3342.8,3.6865]
[1737833750010,0.4866276,3342.9,3342.8,3.2078]
[1737833750503,0.94118128,3342.9,3342.8,3.2078]
[1737833751602,0.4866276,3342.9,3342.8,3.2078]
[1737833753305,0.4866276,3342.9,3342.7,0.47871]
[1737833753505,0.4866276,3342.9,3342.8,3.2078]
[1737833753700,0.4866276,3342.9,3342.8,3.68651]
[1737833754704,0.4866276,3342.9,3342.8,3.2078]
[1737833754902,1.90351945,3342.9,3342.8,3.2078]
[1737833755710,1.4491176,3342.9,3342.8,3.2078]
[1737833756204,0.9704276,3342.9,3342.8,3.2078]
[1737833757605,0.9704276,3342.9,3342.5,0.0044843]
[1737833757806,0.47873,3342.6,3342.5,0.0044843]
[1737833758504,1.4438576,3342.6,3342.5,0.0044843]
[1737833760610,1.89785393,3342.6,3342.5,0.0044843]
[1737833770918,1.4438576,3342.6,3342.5,0.0044843]
[1737833772114,1.89744602,3342.6,3342.5,0.0044843]
[1737833773415,1.4438576,3342.6,3342.5,0.0044843]
[1737833774122,1.89772571,3342.6,3342.5,0.0044843]
[1737833777720,1.41899571,3342.6,3342.5,0.4832343]
[1737833778422,0.94049571,3342.6,3342.5,0.4832343]
[1737833779016,1.41922571,3342.6,3342.5,0.4832343]
[1737833785632,1.41922571,3342.6,3342.3,0.4988]
[1737833785931,0.47873,3342.6,3342.5,0.47875]
[1737833786423,1.44592774,3342.6,3342.5,0.47875]
[1737833786821,0.47875,3342.5,3342.4,0.47875]
[1737833787021,1.44594774,3342.5,3342.4,0.47875]
[1737833788124,0.96719774,3342.5,3342.3,0.4988]
[1737833788324,1.44595774,3342.4,3342.3,0.97757]
[1737833789835,0.96719774,3342.4,3342.3,0.97757]
[1737833790027,1.44595774,3342.4,3342.3,0.97757]
[1737833791430,1.44595774,3342.4,3342.3,0.4988]
[1737833792535,0.96719774,3342.4,3342.2,0.0044843]
[1737833792739,1.93487774,3342.3,3342.2,0.0044843]
[1737833792932,0.47881,3342.1,3342.0,3.2078]
[1737833793330,1.44600774,3342.1,3342.0,3.2078]
[1737833796934,0.47882,3342.0,3341.9,0.4844]
[1737833797136,0.96719774,3342.0,3341.9,0.4844]
[1737833797929,0.93411422,3342.0,3341.9,0.4844]
[1737833798135,1.44601774,3342.0,3341.9,0.4844]
[1737833798536,0.96719774,3342.0,3341.9,0.4844]
[1737833803838,0.45529422,3342.0,3341.9,0.96323]
[1737833805952,0.51190352,3342.1,3342.0,0.47882]
[1737833806150,0.43598957,3342.1,3342.0,1.55358129]
[1737833808251,0.51190352,3342.2,3342.0,1.07476129]
[1737833808445,0.51190352,3342.2,3342.1,0.47881]
[1737833808652,0.94791114,3342.2,3342.1,0.47881]
[1737833811351,0.51190352,3342.2,3342.1,0.47881]
[1737833812653,0.94795968,3342.2,3342.1,0.47881]
[1737833817951,0.94795968,3342.2,3342.0,1.07476129]
[1737833818156,0.91486616,3342.1,3341.8,0.47884]
[1737833818357,0.98760352,3342.0,3341.8,0.47884]
[1737833818650,0.43605616,3341.9,3341.7,3.68665]
[1737833818862,1.45525968,3341.9,3341.7,3.68665]
[1737833819153,0.51190352,3341.8,3341.7,3.68665]
[1737833820260,0.94817197,3341.8,3341.7,3.68665]
[1737833820852,0.51190352,3341.8,3341.7,3.68665]
[1737833821266,0.4757,3342.0,3341.9,0.47883]
[1737833821558,0.95392208,3342.1,3342.0,0.47882]
[1737833821759,0.43631185,3342.1,3342.0,3.07508129]
[1737833822061,0.43631185,3342.3,3342.2,0.47879]
[1737833824160,0.43631185,3342.3,3342.1,0.4788]
[1737833824660,0.43631185,3342.3,3342.0,2.59626129]
[1737833824864,0.43631185,3342.3,3342.2,0.47879]
[1737833825460,0.43631185,3342.3,3342.0,2.59626129]
[1737833825659,0.43631185,3342.3,3342.1,0.4788]
[1737833825852,0.95392208,3342.3,3342.1,0.4788]
[1737833826155,0.43631185,3342.2,3342.0,2.59626129]
[1737833826355,0.95392208,3342.2,3342.0,2.56837129]
[1737833826561,0.92071185,3342.1,3342.0,2.56837129]
[1737833826763,1.43832208,3342.1,3342.0,0.47881]
[1737833826961,2.40312208,3342.1,3342.0,0.47881]
[1737833827864,2.40312208,3342.1,3341.8,1.57026129]
[1737833828054,0.95392208,3342.0,3341.8,2.04910129]
[1737833828365,0.51761023,3342.0,3341.8,2.04910129]
[1737833828861,0.51761023,3342.0,3341.8,1.55360129]
[1737833830661,0.51761023,3342.0,3341.9,0.47883]
[1737833830866,0.51761023,3342.0,3341.9,0.96273]
[1737833834158,0.51758818,3342.3,3342.2,0.47879]
[1737833834357,0.95388364,3342.3,3342.2,1.55355129]
[1737833835974,0.95388364,3342.3,3342.2,1.07476129]
[1737833836866,0.95388364,3342.3,3342.2,1.55355129]
[1737833839964,0.95388364,3342.3,3342.2,2.52665129]
[1737833840467,0.43629544,3342.3,3342.2,2.52665129]
[1737833840876,0.5220725,3342.4,3342.3,0.47878]
[1737833841076,0.9180002,3342.4,3342.3,0.47878]
[1737833841276,0.9180002,3342.4,3342.3,0.97408]
[1737833844177,0.5220725,3342.4,3342.3,0.97408]
[1737833846681,0.0044843,3342.4,3342.3,0.97408]
[1737833849970,0.0044843,3342.4,3342.3,1.21161892]
[1737833850173,0.0044843,3342.4,3342.3,0.97408]
[1737833850374,0.0044843,3342.4,3342.3,0.47878]
[1737833850670,0.5192843,3342.4,3342.3,0.47878]
[1737833850871,1.0368725,3342.4,3342.3,0.47878]
[1737833851268,1.0368725,3342.4,3342.2,1.07476129]
[1737833851269,1.0368725,3342.4,3342.2,1.55354129]
[1737833851481,1.0110882,3342.3,3342.2,1.55354129]
[1737833853077,1.0110882,3342.3,3342.2,1.07476129]
[1737833853383,1.0110882,3342.3,3342.2,1.55355129]
[1737833858684,1.0110882,3342.3,3342.2,1.07476129]
[1737833859577,1.40680685,3342.3,3342.2,1.07476129]
[1737833860780,0.47879,3342.2,3342.1,3.2078]
[1737833860985,0.9963782,3342.2,3342.1,3.2078]
[1737833862874,1.41703895,3342.2,3342.1,3.2078]
[1737833868187,1.41703895,3342.2,3342.0,1.07476129]
[1737833868487,0.5175882,3342.1,3342.0,1.07476129]
[1737833868686,0.9963782,3342.2,3342.0,1.07476129]
[1737833868880,0.5175882,3342.1,3342.0,1.07476129]
[1737833869475,0.9963782,3342.2,3342.0,1.07476129]
[1737833869675,0.5175882,3342.1,3342.0,1.07476129]
[1737833869876,0.9963782,3342.2,3342.0,1.07476129]
[1737833870188,0.4935,3342.3,3342.0,1.07476129]
[1737833870189,0.9963982,3342.1,3342.0,1.07476129]
[1737833870383,0.9963882,3342.2,3342.0,1.07476129]
[1737833870688,0.47881,3342.1,3342.0,1.07476129]
[1737833870890,0.9963882,3342.2,3342.0,1.07476129]
[1737833872786,0.92414472,3342.1,3342.0,1.07476129]